fUST/lending_fUST_20241110
["ID","MTS","AMOUNT","RATE_DAILY","PERIOD"]
[341750432,1731195042479,-153.0,0.00031671,30]
[341750434,1731195042489,-211.4359248,0.00031671,30]
[341750436,1731195042498,-153.0,0.00031671,30]
[341750438,1731195042507,-153.0,0.00031671,30]
[341750440,1731195042516,-211.4359248,0.00031671,30]
[341750443,1731195042525,-153.0,0.00031671,30]
[341750445,1731195042534,-211.4359248,0.00031671,30]
[341750447,1731195042543,-153.0,0.00031671,30]
[341750449,1731195042555,-211.4359248,0.00031671,30]
[341750451,1731195042564,-211.4359248,0.00031671,30]
[341750453,1731195042574,-211.4359248,0.00031671,30]
[341750455,1731195042583,-211.4359248,0.00031671,30]
[341750457,1731195042593,-211.4359248,0.00031671,30]
[341750459,1731195042602,-153.0,0.00031671,30]
[341750461,1731195042611,-211.4359248,0.00031671,30]
[341750463,1731195042620,-211.4359248,0.00031671,30]
[341750465,1731195042630,-153.0,0.00031671,30]
[341750468,1731195042640,-153.0,0.00031671,30]
[341750481,1731195042728,-153.0,0.00031671,30]
[341750484,1731195042738,-211.4359248,0.00031671,30]
[341750487,1731195042747,-211.4359248,0.00031671,30]
[341750489,1731195042757,-153.0,0.00031671,30]
[341750491,1731195042766,-153.0,0.00031671,30]
[341750493,1731195042775,-211.4359248,0.00031671,30]
[341750495,1731195042784,-211.4359248,0.00031671,30]
[341750497,1731195042794,-211.4359248,0.00031671,30]
[341750498,1731195042805,-211.4359248,0.00031671,30]
[341750500,1731195042815,-211.4359248,0.00031671,30]
[341750503,1731195042826,-211.4359248,0.00031671,30]
[341750505,1731195042836,-211.4359248,0.00031671,30]
[341750507,1731195042845,-211.4359248,0.00031671,30]
[341750509,1731195042854,-211.4359248,0.00031671,30]
[341750510,1731195042866,-211.4359248,0.00031671,30]
[341750513,1731195042879,-211.4359248,0.00031671,30]
[341750515,1731195042890,-211.4359248,0.00031671,30]
[341750516,1731195042900,-211.4359248,0.00031671,30]
[341750518,1731195042910,-211.4359248,0.00031671,30]
[341750519,1731195042920,-502.50620464,0.00031673,5]
[341750520,1731195042929,-500.0,0.00031673,5]
[341750521,1731195042938,-500.0,0.00031673,5]
[341750522,1731195042948,-500.0,0.00031673,5]
[341750523,1731195042957,-500.60418354,0.00031673,5]
[341750524,1731195042966,-501.4711944,0.00031673,5]
[341750525,1731195042975,-13448.19012576,0.00031673,2]
[341750526,1731195042985,-1130.0,0.00031674,2]
[341750527,1731195042994,-529.0,0.00031674,2]
[341750528,1731195043003,-2392.0,0.00031674,2]
[341750529,1731195043012,-500.0,0.00031681,2]
[341750530,1731195043022,-500.0,0.00031681,2]
[341750531,1731195043031,-366.0630921,0.00031681,2]
[341750532,1731195043040,-500.0,0.00031681,2]
[341750533,1731195043050,-408.75480186,0.00031681,2]
[341750534,1731195043060,-500.0,0.00031681,2]
[341750535,1731195043069,-172.15348637,0.00031681,2]
[341750536,1731195043079,-500.0,0.00031681,2]
[341750537,1731195043088,-176.41908298,0.00031681,2]
[341750538,1731195043097,-511.19941567,0.00031681,2]
[341750539,1731195043107,-500.0,0.00031681,2]
[341750540,1731195043116,-500.0,0.00031681,2]
[341750541,1731195043126,-500.0,0.00031681,2]
[341750542,1731195043136,-500.0,0.00031681,2]
[341750543,1731195043154,-500.0,0.00031681,2]
[341750544,1731195043164,-370.00596075,0.00031681,2]
[341750545,1731195043173,-500.0,0.00031681,2]
[341750546,1731195043183,-500.0,0.00031681,2]
[341750547,1731195043193,-500.0,0.00031681,2]
[341750548,1731195043202,-500.0,0.00031681,2]
[341750549,1731195043211,-230.25496227,0.00031682,2]
[341750550,1731195043220,-3336.06348865,0.00031682,2]
[341750551,1731195043231,-500.0,0.00031683,2]
[341750552,1731195043241,-151.0,0.00031684,7]
[341750553,1731195043250,-153.052964,0.00031684,7]
[341750554,1731195043261,-151.888586,0.00031684,7]
[341750555,1731195043271,-151.0,0.00031684,7]
[341750556,1731195043287,-640.78649085,0.00031692,2]
[341750557,1731195043299,-465.258182,0.00031693,28]
[341750558,1731195043308,-151.0,0.00031693,2]
[341750559,1731195043318,-151.0,0.00031693,2]
[341750560,1731195043327,-151.0,0.00031693,2]
[341750561,1731195043337,-151.0,0.00031693,2]
[341750562,1731195043346,-151.0,0.00031693,2]
[341750563,1731195043356,-155.329542,0.00031693,2]
[341750564,1731195043366,-151.0,0.00031693,7]
[341750565,1731195043375,-543.838658,0.00031693,7]
[341750566,1731195043386,-543.838658,0.00031693,7]
[341750567,1731195043395,-543.838658,0.00031693,7]
[341750569,1731195043405,-543.838658,0.00031693,7]
[341750570,1731195043414,-543.838658,0.00031693,7]
[341750571,1731195043424,-543.838658,0.00031693,7]
[341750572,1731195043433,-543.838658,0.00031693,7]
[341750573,1731195043443,-543.838658,0.00031693,7]
[341750574,1731195043452,-543.838658,0.00031693,7]
[341750575,1731195043462,-543.838658,0.00031693,7]
[341750576,1731195043471,-543.838648,0.00031693,7]
[341750577,1731195043481,-154.10109037,0.00031693,10]
[341750578,1731195043490,-171.19876224,0.00031693,10]
[341750579,1731195043499,-152.76302743,0.00031693,10]
[341750580,1731195043509,-154.21554673,0.00031693,10]
[341750581,1731195043518,-500.0,0.00031693,10]
[341750582,1731195043528,-150.05,0.00031693,2]
[341750583,1731195043537,-209.47514432,0.00031693,10]
[341750584,1731195043546,-500.0,0.00031693,10]
[341750585,1731195043557,-150.05,0.00031693,10]
[341750586,1731195043566,-163.96794582,0.00031693,10]
[341750587,1731195043576,-1748.0130743,0.00031694,36]
[341750588,1731195043585,-6519.97365881,0.00031694,30]
[341750589,1731195043594,-5000.0,0.00031694,35]
[341750590,1731195043604,-5000.0,0.00031694,30]
[341750591,1731195043614,-5000.0,0.00031694,30]
[341750592,1731195043624,-5000.0,0.00031694,31]
[341750593,1731195043633,-10000.0,0.00031695,30]
[341750594,1731195043643,-931.97,0.00031695,30]
[341750595,1731195043652,-11187.37575203,0.00031698,2]
[341750596,1731195043662,-153.0,0.00031699,30]
[341750597,1731195043672,-305.9382545,0.00031699,30]
[341750598,1731195043681,-153.0,0.00031699,30]
[341750599,1731195043691,-153.0,0.00031699,30]
[341750600,1731195043700,-153.0,0.00031699,30]
[341750601,1731195043710,-153.0,0.00031699,30]
[341750602,1731195043719,-153.0,0.00031699,30]
[341750603,1731195043729,-153.0,0.00031699,30]
[341750604,1731195043738,-153.0,0.00031699,30]
[341750605,1731195043748,-1000.0,0.00031699,2]
[341750606,1731195043757,-927.95,0.000317,30]
[341750607,1731195043766,-2918.72,0.000317,30]
[341750608,1731195043776,-2593.42,0.000317,14]
[341750609,1731195043785,-762.67,0.000317,14]
[341750610,1731195043795,-300.0,0.000317,5]
[341750611,1731195043805,-732.67,0.000317,14]
[341750612,1731195043815,-150.112233,0.000317,11]
[341750613,1731195043824,-150.112233,0.000317,18]
[341750615,1731195043834,-150.112233,0.000317,11]
[341750617,1731195043843,-150.112238,0.000317,17]
[341750618,1731195043853,-150.112233,0.000317,19]
[341750620,1731195043868,-150.112233,0.000317,14]
[341750622,1731195043877,-150.112234,0.000317,16]
[341750623,1731195043887,-150.112235,0.000317,10]
[341750624,1731195043897,-150.112246,0.000317,11]
[341750626,1731195043907,-435.57,0.000317,2]
[341750628,1731195043916,-294.52,0.000317,31]
[341750630,1731195043927,-294.52,0.000317,31]
[341750632,1731195043936,-294.52,0.000317,31]
[341750633,1731195043946,-294.52,0.000317,31]
[341750634,1731195043956,-294.52,0.000317,31]
[341750635,1731195043965,-294.52,0.000317,31]
[341750636,1731195043974,-294.52,0.000317,31]
[341750637,1731195043984,-294.52,0.000317,31]
[341750638,1731195043996,-294.52,0.000317,31]
[341750639,1731195044006,-294.52,0.000317,31]
[341750640,1731195044015,-294.52,0.000317,31]
[341750641,1731195044025,-294.52,0.000317,31]
[341750642,1731195044034,-294.52,0.000317,31]
[341750643,1731195044043,-294.52,0.000317,31]
[341750644,1731195044054,-294.52,0.000317,31]
[341750645,1731195044063,-294.52,0.000317,31]
[341750646,1731195044073,-294.52,0.000317,31]
[341750647,1731195044083,-294.52,0.000317,31]
[341750648,1731195044093,-294.52,0.000317,31]
[341750649,1731195044103,-294.52,0.000317,31]
[341750650,1731195044112,-294.52,0.000317,31]
[341750651,1731195044122,-294.52,0.000317,31]
[341750652,1731195044131,-294.52,0.000317,31]
[341750653,1731195044141,-294.52,0.000317,31]
[341750654,1731195044153,-991.03196051,0.00031701,34]
[341750655,1731195044162,-343.37045171,0.00031702,2]
[341750656,1731195044171,-323.49889509,0.00031702,2]
[341750657,1731195044181,-155.0,0.00031702,30]
[341750658,1731195044190,-1068.36658156,0.00031702,7]
[341750659,1731195044199,-1068.36658156,0.00031702,7]
[341750660,1731195044209,-1278120.14489619,0.00031702,10]
[341750661,1731195044513,-500.0,0.00030136,2]
[341750662,1731195044523,-158.52970605,0.00030136,2]
[341750690,1731195646905,607.63888889,0.00020844,2]
[341750839,1731195672659,167.324456,0.00013973,2]
[341750840,1731195738515,1093.49344924,0.00020844,2]
[341750841,1731195746568,774.56459412,0.00020844,2]
[341750887,1731196168131,-607.63888889,0.00020894,2]
[341750888,1731196168153,-178.644,0.00022074,2]
[341750889,1731196168176,-167.324456,0.00022759,2]
[341750890,1731196170530,178.4240136,0.00022713,2]
[341750924,1731196232359,-156.233,0.0002403,2]
[341750925,1731196232369,-607.63888889,0.00026301,2]
[341750926,1731196232379,-234.710055,0.00027533,2]
[341750927,1731196232388,-300.0,0.00027999,2]
[341750928,1731196232397,-7417.99580669,0.00028,2]
[341750929,1731196232407,-211.4359248,0.00029699,30]
[341750930,1731196232417,-405.90978424,0.00030136,2]
[341750931,1731196232426,-380.41358395,0.00030136,2]
[341750932,1731196232435,-487.69,0.00030136,2]
[341750933,1731196232445,-175.49716013,0.00030136,2]
[341750934,1731196232456,-500.0,0.00030136,2]
[341750935,1731196232465,-500.0,0.00030136,2]
[341750936,1731196232474,-500.0,0.00030136,2]
[341750937,1731196232483,-500.0,0.00030136,2]
[341750938,1731196232493,-500.0,0.00030136,2]
[341750939,1731196232502,-513.07908747,0.00030136,2]
[341750940,1731196232512,-250.0,0.00030136,2]
[341750941,1731196232522,-500.0,0.00030136,2]
[341750942,1731196232532,-500.0,0.00030136,2]
[341750943,1731196232541,-500.0,0.00030136,2]
[341750944,1731196232551,-200.0,0.00030136,2]
[341750946,1731196232561,-35.39670883,0.00030136,2]
[341750963,1731196238525,-180.02125545,0.00029599,2]
[341750964,1731196238535,-464.60329117,0.00030136,2]
[341750965,1731196238544,-500.0,0.00030136,2]
[341750967,1731196238554,-974.2,0.00030136,2]
[341750969,1731196238563,-500.0,0.00030136,2]
[341750970,1731196238573,-500.0,0.00030136,2]
[341750971,1731196238582,-500.0,0.00030136,2]
[341750972,1731196238591,-500.0,0.00030136,2]
[341750973,1731196238600,-500.0,0.00030136,2]
[341750974,1731196238610,-746.93,0.00030136,2]
[341750975,1731196238620,-420.12,0.00030136,2]
[341750976,1731196238630,-500.0,0.00030136,2]
[341750977,1731196238639,-500.0,0.00030136,7]
[341750978,1731196238648,-510.28,0.00030136,2]
[341750979,1731196238657,-420.0,0.00030239,2]
[341750980,1731196238666,-2365.49907048,0.00030337,2]
[341750981,1731196238675,-212.25575609,0.0003041,2]
[341750982,1731196238687,-287.74424391,0.0003041,2]
[341750983,1731196238696,-500.0,0.0003041,2]
[341750984,1731196238705,-246.81078334,0.0003041,2]
[341750985,1731196238718,-3.18921666,0.0003041,2]
[341750986,1731196238727,-456.39,0.0003041,2]
[341750987,1731196238736,-289.32427966,0.0003041,2]
[341750988,1731196238747,-210.67572034,0.0003041,2]
[341750989,1731196238757,-974.2,0.0003041,2]
[341750990,1731196238766,-500.0,0.0003041,2]
[341750991,1731196238775,-500.0,0.0003041,2]
[341750992,1731196238785,-746.93,0.0003041,2]
[341750993,1731196238794,-500.0,0.0003041,2]
[341750994,1731196238803,-500.0,0.00030437,2]
[341750995,1731196238813,-500.0,0.00030437,2]
[341750996,1731196238823,-500.0,0.00030437,2]
[341750997,1731196238833,-500.0,0.00030437,2]
[341750998,1731196238844,-400.31,0.00030437,2]
[341750999,1731196238853,-500.0,0.00030437,2]
[341751000,1731196238863,-500.0,0.00030437,2]
[341751001,1731196238874,-500.0,0.00030437,2]
[341751002,1731196238884,-500.0,0.00030437,2]
[341751003,1731196238893,-341.47029395,0.00030437,2]
[341751004,1731196238902,-500.0,0.00030437,120]
[341751005,1731196238912,-500.0,0.00030437,2]
[341751006,1731196238922,-563.1,0.00030437,2]
[341751007,1731196238931,-500.0,0.00030437,2]
[341751008,1731196238940,-500.0,0.00030437,2]
[341751009,1731196238950,-500.0,0.00030437,2]
[341751010,1731196238959,-500.0,0.00030437,2]
[341751011,1731196238969,-1999.0,0.00030438,2]
[341751012,1731196238979,-1999.0,0.00030438,2]
[341751013,1731196238988,-1999.0,0.00030438,2]
[341751014,1731196238999,-1999.0,0.00030438,2]
[341751015,1731196239009,-1999.0,0.00030438,2]
[341751016,1731196239018,-1999.0,0.00030438,2]
[341751017,1731196239028,-1999.0,0.00030438,2]
[341751018,1731196239038,-1999.0,0.00030438,2]
[341751019,1731196239048,-1999.0,0.00030438,2]
[341751020,1731196239058,-1999.0,0.00030438,2]
[341751021,1731196239068,-1999.0,0.00030438,2]
[341751022,1731196239077,-1999.0,0.00030438,2]
[341751023,1731196239087,-1999.0,0.00030438,2]
[341751024,1731196239096,-1999.0,0.00030438,2]
[341751025,1731196239106,-1999.0,0.00030438,2]
[341751026,1731196239116,-1766.77663,0.00030438,2]
[341751027,1731196239125,-712.24438771,0.00030438,7]
[341751028,1731196239135,-2365.49907041,0.00030517,2]
[341751029,1731196239145,-500.0,0.00030684,2]
[341751030,1731196239155,-500.0,0.00030684,2]
[341751031,1731196239165,-500.0,0.00030684,2]
[341751032,1731196239175,-974.2,0.00030684,2]
[341751033,1731196239183,-295.50250942,0.00030684,2]
[341751034,1731196239193,-434.14,0.00030684,2]
[341751035,1731196239202,-746.93,0.00030684,2]
[341751036,1731196239213,-158.07,0.00030684,2]
[341751037,1731196239222,-2365.49907041,0.00030696,2]
[341751038,1731196239232,-305.0,0.000307,3]
[341751039,1731196239244,-500.0,0.00030711,2]
[341751040,1731196239256,-500.0,0.00030711,2]
[341751041,1731196239268,-274.88234141,0.00030711,2]
[341751042,1731196239280,-500.0,0.00030711,120]
[341751043,1731196239292,-500.0,0.00030711,2]
[341751044,1731196239304,-156.212,0.0003086,60]
[341751045,1731196239315,-500.0,0.00030875,2]
[341751046,1731196239326,-2365.49907041,0.00030876,2]
[341751047,1731196239336,-515.91111743,0.00030954,2]
[341751048,1731196239347,-531.18029616,0.00030954,2]
[341751049,1731196239359,-500.0,0.00030954,2]
[341751050,1731196239370,-500.0,0.00030954,2]
[341751051,1731196239381,-509.01833383,0.00030954,2]
[341751052,1731196239391,-503.05333328,0.00030954,2]
[341751053,1731196239402,-510.27684507,0.00030954,2]
[341751054,1731196239413,-500.0,0.00030954,2]
[341751055,1731196239424,-500.0,0.00030954,2]
[341751056,1731196239434,-500.0,0.00030954,2]
[341751057,1731196239445,-500.0,0.00030955,2]
[341751058,1731196239457,-500.0,0.00030955,2]
[341751059,1731196239468,-500.0,0.00030955,2]
[341751060,1731196239479,-500.0,0.00030958,2]
[341751061,1731196239490,-500.0,0.00030958,2]
[341751062,1731196239501,-502.66914012,0.00030958,14]
[341751063,1731196239512,-500.0,0.00030958,2]
[341751064,1731196239524,-974.2,0.00030958,2]
[341751065,1731196239535,-746.93,0.00030958,2]
[341751066,1731196239546,-500.0,0.00030985,2]
[341751067,1731196239557,-500.0,0.00030985,2]
[341751068,1731196239568,-500.0,0.00030985,120]
[341751069,1731196239579,-505.31814526,0.00030985,2]
[341751070,1731196239590,-383.98,0.00030989,10]
[341751071,1731196239602,-266.41,0.0003099,10]
[341751072,1731196239614,-460.77,0.0003099,10]
[341751073,1731196239625,-500.0,0.00030999,2]
[341751074,1731196239636,-500.0,0.00030999,2]
[341751075,1731196239648,-500.0,0.00030999,2]
[341751076,1731196239660,-3698.63,0.00030999,120]
[341751077,1731196239671,-5000.0,0.00031,2]
[341751078,1731196239682,-5000.0,0.00031,2]
[341751079,1731196239691,-5000.0,0.00031,2]
[341751080,1731196239701,-5000.0,0.00031,2]
[341751081,1731196239712,-5000.0,0.00031,2]
[341751082,1731196239722,-5000.0,0.00031,2]
[341751083,1731196239733,-5000.0,0.00031,2]
[341751084,1731196239743,-5000.0,0.00031,2]
[341751085,1731196239755,-5000.0,0.00031,2]
[341751086,1731196239765,-604.92571956,0.00031,2]
[341751087,1731196239777,-500.0,0.00031228,2]
[341751089,1731196239788,-500.0,0.00031229,2]
[341751090,1731196239800,-368.09,0.00031229,2]
[341751091,1731196239811,-487.07081533,0.00031231,2]
[341751092,1731196239822,-500.0,0.00031232,2]
[341751093,1731196239834,-500.0,0.00031232,2]
[341751094,1731196239846,-500.0,0.00031232,2]
[341751095,1731196239856,-974.2,0.00031232,2]
[341751096,1731196239867,-746.93,0.00031232,2]
[341751097,1731196239879,-500.0,0.00031232,10]
[341751098,1731196239891,-500.0,0.00031259,2]
[341751099,1731196239902,-500.0,0.00031259,120]
[341751100,1731196239913,-500.0,0.00031365,2]
[341751101,1731196239923,-6511.91200691,0.00031478,2]
[341751102,1731196239933,-500.0,0.00031498,2]
[341751103,1731196239950,-500.0,0.00031499,2]
[341751104,1731196239961,-1000.0,0.000315,2]
[341751105,1731196239971,-256.63,0.000315,31]
[341751106,1731196239981,-256.63,0.000315,31]
[341751107,1731196239991,-256.63,0.000315,31]
[341751108,1731196240001,-256.63,0.000315,31]
[341751109,1731196240013,-256.63,0.000315,31]
[341751110,1731196240024,-256.63,0.000315,31]
[341751111,1731196240035,-256.63,0.000315,31]
[341751112,1731196240047,-256.63,0.000315,31]
[341751113,1731196240058,-256.63,0.000315,31]
[341751114,1731196240070,-256.63,0.000315,31]
[341751115,1731196240081,-256.63,0.000315,31]
[341751116,1731196240091,-256.63,0.000315,31]
[341751117,1731196240101,-500.0,0.00031502,2]
[341751118,1731196240112,-415.47951403,0.00031506,2]
[341751119,1731196240123,-277.95487301,0.00031506,2]
[341751120,1731196240139,-228.9,0.00031506,2]
[341751121,1731196240150,-974.2,0.00031506,2]
[341751122,1731196240161,-746.93,0.00031506,2]
[341751123,1731196240173,-500.0,0.00031533,2]
[341751125,1731196240183,-500.0,0.00031533,120]
[341751127,1731196240194,-167.324456,0.00031546,2]
[341751129,1731196240204,-1000.0,0.00031567,2]
[341751130,1731196240216,-2500.0,0.00031574,3]
[341751131,1731196240226,-500.0,0.00031582,2]
[341751132,1731196240236,-2500.0,0.00031582,3]
[341751133,1731196240247,-2500.0,0.00031582,3]
[341751134,1731196240257,-2500.0,0.00031591,3]
[341751135,1731196240268,-2500.0,0.00031591,3]
[341751136,1731196240278,-500.0,0.00031599,2]
[341751138,1731196240289,-2500.0,0.000316,3]
[341751139,1731196240300,-2500.0,0.000316,3]
[341751140,1731196240311,-500.0,0.000316,36]
[341751141,1731196240322,-467.69308077,0.000316,3]
[341751142,1731196240332,-500.4355933,0.00031673,5]
[341751143,1731196240343,-500.0,0.00031673,5]
[341751144,1731196240354,-500.0,0.00031673,5]
[341751145,1731196240365,-500.0,0.00031673,5]
[341751146,1731196240377,-500.0,0.00031673,5]
[341751147,1731196240387,-500.0,0.00031673,5]
[341751148,1731196240398,-500.0,0.00031673,2]
[341751149,1731196240408,-500.0,0.00031673,5]
[341751150,1731196240419,-500.0,0.00031673,5]
[341751151,1731196240429,-500.0,0.00031673,5]
[341751152,1731196240440,-202.202,0.00031678,2]
[341751153,1731196240450,-1130.0,0.00031678,2]
[341751154,1731196240462,-529.0,0.00031678,2]
[341751155,1731196240472,-2392.0,0.00031678,2]
[341751156,1731196240482,-156.444,0.0003168,14]
[341751157,1731196240492,-70071.29563841,0.0003169,2]
[341751158,1731196240503,-500.0,0.00031692,2]
[341751159,1731196240514,-1000.0,0.00031693,7]
[341751161,1731196240524,-1000.0,0.00031693,14]
[341751162,1731196240534,-500.0,0.00031693,2]
[341751163,1731196240544,-500.0,0.00031693,2]
[341751164,1731196240554,-500.0,0.00031693,2]
[341751165,1731196240565,-500.0,0.00031693,2]
[341751166,1731196240575,-500.0,0.00031693,2]
[341751167,1731196240707,-262.86649085,0.00031693,2]
[341751168,1731196240722,-646.8,0.00031693,2]
[341751169,1731196240731,-500.0,0.00031694,2]
[341751170,1731196240741,-500.0,0.00031694,2]
[341751171,1731196240750,-207.83959097,0.00031694,2]
[341751172,1731196240759,-500.0,0.00031694,2]
[341751173,1731196240768,-286.12836131,0.00031694,2]
[341751174,1731196240778,-256.24416447,0.00031694,2]
[341751175,1731196240787,-362.0957415,0.00031694,2]
[341751176,1731196240797,-459.00417252,0.00031694,2]
[341751177,1731196240808,-500.0,0.00031694,2]
[341751178,1731196240818,-500.0,0.00031694,2]
[341751179,1731196240828,-500.0,0.00031694,2]
[341751180,1731196240842,-500.0,0.00031694,2]
[341751181,1731196240851,-500.0,0.00031694,2]
[341751182,1731196240860,-500.0,0.00031694,2]
[341751183,1731196240870,-473.49335809,0.00031694,2]
[341751184,1731196240881,-300.0,0.00031694,2]
[341751185,1731196240890,-153.3598247,0.00031694,2]
[341751186,1731196240901,-151.0,0.00031694,7]
[341751187,1731196240915,-151.0,0.00031694,7]
[341751188,1731196240925,-151.0,0.00031694,7]
[341751189,1731196240935,-152.500231,0.00031694,7]
[341751190,1731196240944,-151.0,0.00031694,7]
[341751191,1731196240954,-151.0,0.00031694,7]
[341751192,1731196240965,-151.0,0.00031694,7]
[341751193,1731196240974,-151.0,0.00031694,7]
[341751194,1731196240984,-151.0,0.00031694,7]
[341751195,1731196240998,-151.0,0.00031694,7]
[341751196,1731196241011,-151.0,0.00031694,7]
[341751197,1731196241021,-151.0,0.00031694,7]
[341751198,1731196241030,-181.143478,0.00031694,7]
[341751199,1731196241039,-151.0,0.00031694,7]
[341751200,1731196241049,-151.0,0.00031694,7]
[341751201,1731196241059,-151.0,0.00031694,7]
[341751202,1731196241068,-151.0,0.00031694,7]
[341751203,1731196241078,-151.0,0.00031694,7]
[341751204,1731196241088,-200.24109776,0.00031694,7]
[341751205,1731196241097,-240.081333,0.00031694,7]
[341751206,1731196241107,-240.081333,0.00031694,7]
[341751207,1731196241116,-240.081333,0.00031694,7]
[341751208,1731196241126,-240.081333,0.00031694,7]
[341751209,1731196241135,-240.081333,0.00031694,7]
[341751210,1731196241144,-240.081333,0.00031694,7]
[341751211,1731196241153,-240.081333,0.00031694,7]
[341751212,1731196241163,-240.081333,0.00031694,7]
[341751213,1731196241171,-240.081333,0.00031694,7]
[341751214,1731196241181,-240.081333,0.00031694,7]
[341751215,1731196241191,-240.081333,0.00031694,7]
[341751216,1731196241200,-240.081333,0.00031694,7]
[341751217,1731196241209,-240.081333,0.00031694,7]
[341751218,1731196241223,-240.081333,0.00031694,7]
[341751219,1731196241233,-240.081333,0.00031694,7]
[341751220,1731196241242,-240.081333,0.00031694,7]
[341751221,1731196241251,-240.081333,0.00031694,7]
[341751222,1731196241261,-240.081333,0.00031694,7]
[341751223,1731196241270,-240.081333,0.00031694,7]
[341751224,1731196241280,-240.08133,0.00031694,7]
[341751225,1731196241289,-151.0,0.00031694,7]
[341751226,1731196241299,-151.0,0.00031694,7]
[341751227,1731196241308,-151.0,0.00031694,7]
[341751228,1731196241318,-151.0,0.00031694,7]
[341751229,1731196241327,-151.0,0.00031694,7]
[341751230,1731196241336,-151.0,0.00031694,7]
[341751231,1731196241345,-151.0,0.00031694,7]
[341751232,1731196241354,-151.0,0.00031694,7]
[341751233,1731196241364,-151.0,0.00031694,7]
[341751234,1731196241374,-151.0,0.00031694,7]
[341751235,1731196241383,-178.868406,0.00031694,7]
[341751236,1731196241392,-151.0,0.00031694,7]
[341751237,1731196241402,-151.0,0.00031694,7]
[341751238,1731196241411,-151.0,0.00031694,7]
[341751239,1731196241420,-257.645527,0.00031694,7]
[341751240,1731196241429,-634.239014,0.00031694,7]
[341751241,1731196241438,-634.239014,0.00031694,7]
[341751242,1731196241447,-634.239014,0.00031694,7]
[341751243,1731196241456,-634.239014,0.00031694,7]
[341751244,1731196241467,-634.239014,0.00031694,7]
[341751245,1731196241476,-634.239014,0.00031694,7]
[341751246,1731196241486,-634.239014,0.00031694,7]
[341751247,1731196241495,-634.239014,0.00031694,7]
[341751248,1731196241504,-634.239014,0.00031694,7]
[341751249,1731196241513,-634.239014,0.00031694,7]
[341751250,1731196241522,-634.239014,0.00031694,7]
[341751251,1731196241531,-634.239014,0.00031694,7]
[341751252,1731196241540,-634.239014,0.00031694,7]
[341751253,1731196241550,-634.239014,0.00031694,7]
[341751254,1731196241559,-634.239014,0.00031694,7]
[341751255,1731196241569,-634.239014,0.00031694,7]
[341751256,1731196241578,-634.239014,0.00031694,7]
[341751257,1731196241587,-634.239014,0.00031694,7]
[341751258,1731196241598,-634.239014,0.00031694,7]
[341751259,1731196241607,-634.239007,0.00031694,7]
[341751260,1731196241617,-151.0,0.00031694,7]
[341751261,1731196241626,-151.0,0.00031694,2]
[341751262,1731196241636,-151.0,0.00031694,2]
[341751263,1731196241645,-151.0,0.00031694,2]
[341751264,1731196241655,-151.0,0.00031694,2]
[341751265,1731196241664,-435.070926,0.00031694,7]
[341751266,1731196241673,-435.070926,0.00031694,7]
[341751267,1731196241683,-435.070926,0.00031694,7]
[341751268,1731196241692,-435.070926,0.00031694,7]